[Event "European Online Club-ch-D 2021"]
[Site "Online"]
[Date "2021.03.27"]
[Round "6.10"]
[White "Roubalik, Jakub"]
[Black "Howell, David W L"]
[Result "1/2-1/2"]
[ECO "E12"]
[WhiteElo "2391"]
[BlackElo "2658"]
[Annotator "ChessBase"]
[PlyCount "107"]
[EventDate "2021.03.27"]
[EventType "team-tourn"]
[EventCountry "NET"]
[SourceTitle "playchess.com"]
[Source "ChessBase"]
[SourceQuality "1"]
[TimeControl "900+5"]

1. d4 {[%emt 0:00:00]} Nf6 {[%emt 0:01:06]} 2. c4 {[%emt 0:00:04]} e6 {[%emt 0:00:05]} 3. Nf3 {[%emt 0:00:04]} b6 {[%emt 0:00:30]} 4. a3 {[%emt 0:00:04]} Bb7 {[%emt 0:00:22]} 5. Nc3 {[%emt 0:00:04]} d5 {[%emt 0:00:50]} 6. cxd5 {[%emt 0:00:03]} Nxd5 {[%emt 0:00:01]} 7. e3 {[%emt 0:00:05]} g6 {[%emt 0:00:09]} 8. h4 {[%emt 0:00:14]} h6 {[%emt 0:00:25]} 9. Bb5+ {[%emt 0:00:20]} c6 {[%emt 0:00:03]} 10. Bd3 {[%emt 0:00:03]} Nxc3 {[%emt 0:00:08]} 11. bxc3 {[%emt 0:00:02]} Bg7 {[%emt 0:00:01]} 12. e4 {[%emt 0:01:01]} c5 {[%emt 0:00:21]} 13. Be3 {[%emt 0:00:25]} Nd7 {[%emt 0:02:24]} 14. Qe2 {[%emt 0:02:41]} Nf6 {[%emt 0:02:28]} 15. Bf4 {[%emt 0:02:03]} O-O {[%emt 0:00:12]} 16. Be5 {[%emt 0:00:54]} cxd4 {[%emt 0:00:23]} 17. cxd4 {[%emt 0:00:03]} Rc8 {[%emt 0:00:02]} 18. O-O {[%emt 0:00:05]} Nh5 {[%emt 0:02:37]} 19. Bxg7 {[%emt 0:00:08]} Kxg7 {[%emt 0:00:01]} 20. Qe3 {[%emt 0:02:14]} Rc3 {[%emt 0:01:22]} 21. Rfc1 {[%emt 0:00:24]} Qc7 {[%emt 0:01:01]} 22. Rxc3 {[%emt 0:00:05]} Qxc3 {[%emt 0:00:03]} 23. Rc1 {[%emt 0:00:01]} Qxa3 {[%emt 0:00:05]} 24. Rc7 {[%emt 0:00:02]} Ba6 {[%emt 0:01:40]} 25. Bxa6 {[%emt 0:00:55]} Qxa6 {[%emt 0:00:02]} 26. Ne5 {[%emt 0:00:41]} Qa1+ {[%emt 0:00:06]} 27. Kh2 {[%emt 0:00:03]} Qd1 {[%emt 0:00:01]} 28. Rxa7 {[%emt 0:00:34]} Nf6 {[%emt 0:00:09]} 29. f3 {[%emt 0:00:34]} b5 {[%emt 0:00:31]} 30. Rb7 {[%emt 0:00:18]} Qb1 {[%emt 0:00:08]} 31. Qf4 {[%emt 0:00:31]} Qb4 {[%emt 0:00:08]} 32. Nc6 {[%emt 0:01:12]} Qc3 {[%emt 0:00:01]} 33. Qd6 {[%emt 0:00:17]} Qe1 {[%emt 0:00:05]} 34. Qf4 {[%emt 0:00:11]} Nh5 {[%emt 0:00:07]} 35. Qg4 {[%emt 0:00:05]} Nf6 {[%emt 0:00:10]} 36. Qg3 {[%emt 0:00:16]} Qxg3+ {[%emt 0:00:06]} 37. Kxg3 {[%emt 0:00:01]} Nh5+ {[%emt 0:00:01]} 38. Kf2 {[%emt 0:00:07]} g5 {[%emt 0:00:01]} 39. hxg5 {[%emt 0:00:03]} hxg5 {[%emt 0:00:01]} 40. Rxb5 {[%emt 0:00:03]} Kh6 {[%emt 0:00:04]} 41. Ne5 {[%emt 0:00:04]} Nf4 {[%emt 0:00:09]} 42. Rb6 {[%emt 0:00:17]} Kg7 {[%emt 0:00:06]} 43. Rb7 {[%emt 0:00:03]} Ng6 {[%emt 0:00:05]} 44. Nxg6 {[%emt 0:00:06]} Kxg6 {[%emt 0:00:01]} 45. Ke3 {[%emt 0:00:07]} Kf6 {[%emt 0:00:01]} 46. Rb6 {[%emt 0:00:12]} Ra8 {[%emt 0:00:01]} 47. d5 {[%emt 0:00:05]} Ke5 {[%emt 0:00:06]} 48. dxe6 {[%emt 0:00:14]} fxe6 {[%emt 0:00:01]} 49. Rb5+ {[%emt 0:00:03]} Kf6 {[%emt 0:00:01]} 50. Kf2 {[%emt 0:00:10]} Ra2+ {[%emt 0:00:06]} 51. Kg3 {[%emt 0:00:01]} Re2 {[%emt 0:00:01]} 52. Kh3 {[%emt 0:00:04]} g4+ {[%emt 0:00:04]} 53. Kxg4 {[%emt 0:00:04]} Rxg2+ {[%emt 0:00:02]} 54. Kf4 {[%emt 0:00:02]} 1/2-1/2

[Event "European Online Club-ch-D 2021"]
[Site "Online"]
[Date "2021.03.27"]
[Round "6.11"]
[White "McShane, Luke J"]
[Black "Vymazal, Bronislav"]
[Result "1-0"]
[ECO "B00"]
[WhiteElo "2674"]
[BlackElo "2350"]
[Annotator "ChessBase"]
[PlyCount "43"]
[EventDate "2021.03.27"]
[EventType "team-tourn"]
[EventCountry "NET"]
[SourceTitle "playchess.com"]
[Source "ChessBase"]
[SourceQuality "1"]
[TimeControl "900+5"]

1. e4 {[%emt 0:00:00]} b6 {[%emt 0:00:09]} 2. d4 {[%emt 0:00:05]} Bb7 {[%emt 0:00:01]} 3. Bd3 {[%emt 0:00:02]} Nf6 {[%emt 0:00:02]} 4. Qe2 {[%emt 0:00:28]} Nc6 {[%emt 0:00:03]} 5. c3 {[%emt 0:00:10]} e5 {[%emt 0:00:02]} 6. d5 {[%emt 0:00:22]} Ne7 {[%emt 0:00:02]} 7. h4 {[%emt 0:00:37]} Ng6 {[%emt 0:01:36]} 8. h5 {[%emt 0:00:03]} Nf4 {[%emt 0:00:06]} 9. Bxf4 {[%emt 0:00:02]} exf4 {[%emt 0:00:00]} 10. Nh3 {[%emt 0:00:02]} Bd6 {[%emt 0:00:10]} 11. e5 {[%emt 0:01:53]} O-O {[%emt 0:00:02]} 12. exf6 {[%emt 0:00:04]} Re8 {[%emt 0:00:03]} 13. Be4 {[%emt 0:00:02]} Bxd5 {[%emt 0:00:03]} 14. Nd2 {[%emt 0:00:08]} Qxf6 {[%emt 0:00:17]} 15. O-O-O {[%emt 0:00:38]} Bxa2 {[%emt 0:00:21]} 16. Qd3 {[%emt 0:00:24]} Rac8 {[%emt 0:02:34]} 17. Bxh7+ {[%emt 0:00:07]} Kh8 {[%emt 0:00:02]} 18. Ne4 {[%emt 0:01:17]} Qh6 {[%emt 0:00:20]} 19. Bf5 {[%emt 0:02:32]} Re5 {[%emt 0:03:56]} 20. f3 {[%emt 0:04:42]} Bb3 {[%emt 0:04:27]} 21. Nhf2 {[%emt 0:00:03]} Bf8 {[%emt 0:01:03]} 22. Ng4 {[%emt 0:00:22]} 1-0

[Event "European Online Club-ch-D 2021"]
[Site "Online"]
[Date "2021.03.27"]
[Round "6.12"]
[White "Kusa, Jakub"]
[Black "Cheparinov, Ivan"]
[Result "0-1"]
[ECO "B51"]
[WhiteElo "2336"]
[BlackElo "2667"]
[Annotator "ChessBase"]
[PlyCount "44"]
[EventDate "2021.03.27"]
[EventType "team-tourn"]
[EventCountry "NET"]
[SourceTitle "playchess.com"]
[Source "ChessBase"]
[SourceQuality "1"]
[TimeControl "900+5"]

1. e4 {[%emt 0:00:00]} c5 {[%emt 0:00:03]} 2. Nf3 {[%emt 0:00:05]} d6 {[%emt 0:00:03]} 3. Bb5+ {[%emt 0:00:03]} Nd7 {[%emt 0:00:02]} 4. O-O {[%emt 0:00:07]} a6 {[%emt 0:00:01]} 5. Bd3 {[%emt 0:00:07]} Ngf6 {[%emt 0:00:03]} 6. Re1 {[%emt 0:00:18]} e6 {[%emt 0:00:04]} 7. c3 {[%emt 0:00:11]} b5 {[%emt 0:00:04]} 8. Bc2 {[%emt 0:00:20]} c4 {[%emt 0:00:07]} 9. d4 {[%emt 0:01:02]} cxd3 {[%emt 0:00:04]} 10. Qxd3 {[%emt 0:00:15]} Bb7 {[%emt 0:00:24]} 11. Qe2 {[%emt 0:00:28]} Be7 {[%emt 0:00:09]} 12. a4 {[%emt 0:00:25]} O-O {[%emt 0:00:35]} 13. Bg5 {[%emt 0:01:10]} h6 {[%emt 0:00:30]} 14. Bh4 {[%emt 0:00:45]} bxa4 {[%emt 0:00:20]} 15. Rxa4 {[%emt 0:01:31]} e5 {[%emt 0:00:33]} 16. Bxf6 {[%emt 0:00:34]} Bxf6 {[%emt 0:00:21]} 17. c4 {[%emt 0:00:30]} Nc5 {[%emt 0:00:24]} 18. Ra1 {[%emt 0:00:10]} Qb6 {[%emt 0:00:09]} 19. Nc3 {[%emt 0:01:22]} Qxb2 {[%emt 0:00:42]} 20. Nd5 {[%emt 0:02:44]} Bxd5 {[%emt 0:00:03]} 21. exd5 {[%emt 0:00:02]} e4 {[%emt 0:00:31]} 22. h3 {[%emt 0:01:08]} exf3 {[%emt 0:00:25]} 0-1

[Event "European Online Club-ch-D 2021"]
[Site "Online"]
[Date "2021.03.27"]
[Round "6.14"]
[White "Ibrahimli, Murad"]
[Black "Lagarde, Maxime"]
[Result "1/2-1/2"]
[ECO "A88"]
[WhiteElo "2436"]
[BlackElo "2640"]
[Annotator "ChessBase"]
[PlyCount "235"]
[EventDate "2021.03.27"]
[EventType "team-tourn"]
[EventCountry "NET"]
[SourceTitle "playchess.com"]
[Source "ChessBase"]
[SourceQuality "1"]
[TimeControl "900+5"]

1. d4 {[%emt 0:00:00]} f5 {[%emt 0:00:03]} 2. c4 {[%emt 0:00:04]} Nf6 {[%emt 0:00:02]} 3. Nc3 {[%emt 0:00:02]} d6 {[%emt 0:00:01]} 4. g3 {[%emt 0:00:03]} g6 {[%emt 0:00:03]} 5. Bg2 {[%emt 0:00:02]} Bg7 {[%emt 0:00:01]} 6. Nf3 {[%emt 0:00:01]} O-O {[%emt 0:00:02]} 7. O-O {[%emt 0:00:02]} c6 {[%emt 0:00:02]} 8. b3 {[%emt 0:00:09]} Na6 {[%emt 0:00:50]} 9. Re1 {[%emt 0:00:26]} e5 {[%emt 0:00:14]} 10. dxe5 {[%emt 0:01:21]} dxe5 {[%emt 0:00:00]} 11. Ba3 {[%emt 0:00:02]} e4 {[%emt 0:00:21]} 12. Bxf8 {[%emt 0:01:32]} Qxf8 {[%emt 0:00:00]} 13. Nd4 {[%emt 0:00:05]} Ng4 {[%emt 0:00:04]} 14. h3 {[%emt 0:00:53]} Ne5 {[%emt 0:00:10]} 15. Qd2 {[%emt 0:00:48]} Nc5 {[%emt 0:00:24]} 16. Rad1 {[%emt 0:00:21]} a5 {[%emt 0:00:06]} 17. Qc2 {[%emt 0:01:19]} h5 {[%emt 0:02:10]} 18. Na4 {[%emt 0:01:28]} Nxa4 {[%emt 0:01:10]} 19. bxa4 {[%emt 0:00:03]} Qc5 {[%emt 0:00:42]} 20. Nb3 {[%emt 0:00:22]} Qe7 {[%emt 0:00:02]} 21. f4 {[%emt 0:00:54]} Nf7 {[%emt 0:00:27]} 22. e3 {[%emt 0:00:06]} c5 {[%emt 0:02:43]} 23. g4 {[%emt 0:00:55]} hxg4 {[%emt 0:00:41]} 24. hxg4 {[%emt 0:00:03]} Be6 {[%emt 0:00:01]} 25. gxf5 {[%emt 0:00:38]} gxf5 {[%emt 0:00:04]} 26. Bh3 {[%emt 0:00:02]} b6 {[%emt 0:00:25]} 27. Qf2 {[%emt 0:00:26]} Bf6 {[%emt 0:01:09]} 28. Kh2 {[%emt 0:00:04]} Nh6 {[%emt 0:00:21]} 29. Nd2 {[%emt 0:01:06]} Kf7 {[%emt 0:00:29]} 30. Qe2 {[%emt 0:01:16]} Rh8 {[%emt 0:00:04]} 31. Rh1 {[%emt 0:00:52]} Kf8 {[%emt 0:00:16]} 32. Rdg1 {[%emt 0:00:16]} Bf7 {[%emt 0:02:16]} 33. Rg3 {[%emt 0:01:04]} Bh4 {[%emt 0:00:24]} 34. Rg2 {[%emt 0:00:02]} Qe8 {[%emt 0:00:40]} 35. Nf1 {[%emt 0:00:13]} Qxa4 {[%emt 0:00:12]} 36. Qb2 {[%emt 0:00:03]} Rh7 {[%emt 0:00:07]} 37. Qxb6 {[%emt 0:00:01]} Qxc4 {[%emt 0:00:21]} 38. Qb8+ {[%emt 0:00:30]} Be8 {[%emt 0:00:18]} 39. Kg1 {[%emt 0:00:02]} Qe6 {[%emt 0:00:11]} 40. Ng3 {[%emt 0:00:16]} Rg7 {[%emt 0:00:07]} 41. Ne2 {[%emt 0:00:05]} Rxg2+ {[%emt 0:00:08]} 42. Bxg2 {[%emt 0:00:01]} Be7 {[%emt 0:00:02]} 43. Bh3 {[%emt 0:00:15]} Qf6 {[%emt 0:00:04]} 44. Qe5 {[%emt 0:00:09]} c4 {[%emt 0:00:27]} 45. Nd4 {[%emt 0:00:07]} c3 {[%emt 0:00:02]} 46. Qxf6+ {[%emt 0:00:03]} Bxf6 {[%emt 0:00:03]} 47. Kf2 {[%emt 0:00:03]} Bxd4 {[%emt 0:00:09]} 48. exd4 {[%emt 0:00:02]} c2 {[%emt 0:00:01]} 49. Rc1 {[%emt 0:00:02]} Ba4 {[%emt 0:00:02]} 50. Ke3 {[%emt 0:00:16]} Ke7 {[%emt 0:00:02]} 51. d5 {[%emt 0:00:05]} Kd6 {[%emt 0:00:07]} 52. Kd4 {[%emt 0:00:02]} Ng4 {[%emt 0:00:03]} 53. Bxg4 {[%emt 0:00:01]} fxg4 {[%emt 0:00:00]} 54. Kxe4 {[%emt 0:00:01]} g3 {[%emt 0:00:01]} 55. f5 {[%emt 0:00:03]} g2 {[%emt 0:00:02]} 56. f6 {[%emt 0:00:15]} Bb5 {[%emt 0:00:06]} 57. f7 {[%emt 0:00:02]} Ke7 {[%emt 0:00:02]} 58. Kf3 {[%emt 0:00:03]} Kxf7 {[%emt 0:00:09]} 59. Kxg2 {[%emt 0:00:01]} Bc4 {[%emt 0:00:10]} 60. Rxc2 {[%emt 0:00:04]} Bxd5+ {[%emt 0:00:01]} 61. Kf2 {[%emt 0:00:01]} a4 {[%emt 0:00:05]} 62. Ke3 {[%emt 0:00:03]} Ke7 {[%emt 0:00:05]} 63. Kd4 {[%emt 0:00:02]} Be6 {[%emt 0:00:03]} 64. Ke5 {[%emt 0:00:05]} Bf7 {[%emt 0:00:13]} 65. Rc7+ {[%emt 0:00:11]} Ke8 {[%emt 0:00:01]} 66. a3 {[%emt 0:00:05]} Bb3 {[%emt 0:00:05]} 67. Kd6 {[%emt 0:00:02]} Kf8 {[%emt 0:00:07]} 68. Re7 {[%emt 0:00:04]} Ba2 {[%emt 0:00:02]} 69. Re4 {[%emt 0:00:01]} Bb3 {[%emt 0:00:02]} 70. Kc5 {[%emt 0:00:02]} Kf7 {[%emt 0:00:02]} 71. Kd6 {[%emt 0:00:01]} Kf8 {[%emt 0:00:02]} 72. Kd7 {[%emt 0:00:02]} Kf7 {[%emt 0:00:05]} 73. Rf4+ {[%emt 0:00:01]} Kg6 {[%emt 0:00:05]} 74. Kc6 {[%emt 0:00:02]} Kg5 {[%emt 0:00:00]} 75. Rf8 {[%emt 0:00:02]} Bc2 {[%emt 0:00:07]} 76. Kb5 {[%emt 0:00:01]} Bb3 {[%emt 0:00:03]} 77. Rf1 {[%emt 0:00:13]} Bc2 {[%emt 0:00:09]} 78. Rf2 {[%emt 0:00:10]} Bb3 {[%emt 0:00:03]} 79. Kc5 {[%emt 0:00:02]} Kg6 {[%emt 0:00:04]} 80. Kd6 {[%emt 0:00:02]} Kg5 {[%emt 0:00:03]} 81. Ke5 {[%emt 0:00:01]} Kg6 {[%emt 0:00:02]} 82. Rf3 {[%emt 0:00:25]} Kg7 {[%emt 0:00:06]} 83. Kd4 {[%emt 0:00:04]} Bd1 {[%emt 0:00:08]} 84. Rf4 {[%emt 0:00:05]} Kg6 {[%emt 0:00:03]} 85. Kc5 {[%emt 0:00:14]} Kg5 {[%emt 0:00:05]} 86. Rf1 {[%emt 0:00:04]} Bb3 {[%emt 0:00:03]} 87. Kd6 {[%emt 0:00:18]} Kg6 {[%emt 0:00:05]} 88. Ke7 {[%emt 0:00:02]} Kg5 {[%emt 0:00:04]} 89. Rf2 {[%emt 0:00:03]} Kg6 {[%emt 0:00:03]} 90. Kd6 {[%emt 0:00:06]} Kg5 {[%emt 0:00:02]} 91. Ke5 {[%emt 0:00:02]} Kg6 {[%emt 0:00:02]} 92. Rf1 {[%emt 0:00:02]} Bc2 {[%emt 0:00:08]} 93. Rg1+ {[%emt 0:00:16]} Kf7 {[%emt 0:00:04]} 94. Rc1 {[%emt 0:00:02]} Bb3 {[%emt 0:00:03]} 95. Rc7+ {[%emt 0:00:02]} Kg6 {[%emt 0:00:02]} 96. Rc3 {[%emt 0:00:11]} Kg7 {[%emt 0:00:09]} 97. Rf3 {[%emt 0:00:03]} Kg6 {[%emt 0:00:05]} 98. Kd4 {[%emt 0:00:01]} Kg5 {[%emt 0:00:04]} 99. Kc5 {[%emt 0:00:02]} Kg4 {[%emt 0:00:10]} 100. Rf8 {[%emt 0:00:02]} Kg5 {[%emt 0:00:03]} 101. Kb4 {[%emt 0:00:02]} Kg6 {[%emt 0:00:09]} 102. Ra8 {[%emt 0:00:07]} Kf6 {[%emt 0:00:13]} 103. Ra6+ {[%emt 0:00:08]} Ke7 {[%emt 0:00:09]} 104. Kc5 {[%emt 0:00:04]} Kd7 {[%emt 0:00:03]} 105. Ra7+ {[%emt 0:00:02]} Ke6 {[%emt 0:00:04]} 106. Rh7 {[%emt 0:00:10]} Ke5 {[%emt 0:00:07]} 107. Re7+ {[%emt 0:00:03]} Kf6 {[%emt 0:00:02]} 108. Re3 {[%emt 0:00:02]} Kf5 {[%emt 0:00:10]} 109. Kb4 {[%emt 0:00:02]} Kf6 {[%emt 0:00:04]} 110. Rxb3 {[%emt 0:00:04]} axb3 {[%emt 0:00:00]} 111. Kxb3 {[%emt 0:00:03]} Ke6 {[%emt 0:00:02]} 112. Kb4 {[%emt 0:00:02]} Kd7 {[%emt 0:00:01]} 113. Kb5 {[%emt 0:00:01]} Kc8 {[%emt 0:00:01]} 114. Kb6 {[%emt 0:00:01]} Kb8 {[%emt 0:00:00]} 115. a4 {[%emt 0:00:02]} Ka8 {[%emt 0:00:00]} 116. a5 {[%emt 0:00:01]} Kb8 {[%emt 0:00:00]} 117. a6 {[%emt 0:00:02]} Ka8 {[%emt 0:00:00]} 118. a7 {[%emt 0:00:01]} 1/2-1/2

[Event "European Online Club-ch-D 2021"]
[Site "Online"]
[Date "2021.03.27"]
[Round "6.15"]
[White "Maurizzi, Marc Andria"]
[Black "Babazada, Khazar"]
[Result "1/2-1/2"]
[ECO "E94"]
[WhiteElo "2461"]
[BlackElo "2409"]
[Annotator "ChessBase"]
[PlyCount "82"]
[EventDate "2021.03.27"]
[EventType "team-tourn"]
[EventCountry "NET"]
[SourceTitle "playchess.com"]
[Source "ChessBase"]
[SourceQuality "1"]
[TimeControl "900+5"]

1. d4 {[%emt 0:00:00]} Nf6 {[%emt 0:00:08]} 2. c4 {[%emt 0:00:03]} g6 {[%emt 0:00:01]} 3. Nc3 {[%emt 0:00:17]} Bg7 {[%emt 0:00:02]} 4. e4 {[%emt 0:00:02]} d6 {[%emt 0:00:02]} 5. Nf3 {[%emt 0:00:15]} O-O {[%emt 0:00:03]} 6. Be2 {[%emt 0:00:01]} Na6 {[%emt 0:00:36]} 7. O-O {[%emt 0:00:09]} e5 {[%emt 0:00:24]} 8. Rb1 {[%emt 0:02:45]} c6 {[%emt 0:00:10]} 9. b4 {[%emt 0:00:22]} exd4 {[%emt 0:00:16]} 10. Nxd4 {[%emt 0:00:00]} Re8 {[%emt 0:00:11]} 11. f3 {[%emt 0:00:25]} Nc7 {[%emt 0:00:46]} 12. Bg5 {[%emt 0:02:11]} h6 {[%emt 0:00:18]} 13. Bh4 {[%emt 0:00:04]} Ne6 {[%emt 0:00:14]} 14. Nxe6 {[%emt 0:00:06]} Bxe6 {[%emt 0:00:02]} 15. Qd2 {[%emt 0:00:05]} Nxe4 {[%emt 0:00:29]} 16. Nxe4 {[%emt 0:00:32]} Qxh4 {[%emt 0:00:02]} 17. Qxd6 {[%emt 0:00:43]} Rad8 {[%emt 0:00:10]} 18. Qc7 {[%emt 0:00:05]} Bf5 {[%emt 0:00:45]} 19. g3 {[%emt 0:00:49]} Bd4+ {[%emt 0:00:53]} 20. Kh1 {[%emt 0:00:04]} Qh3 {[%emt 0:01:00]} 21. Qxb7 {[%emt 0:03:16]} Rxe4 {[%emt 0:03:40]} 22. fxe4 {[%emt 0:00:00]} Bxe4+ {[%emt 0:00:07]} 23. Bf3 {[%emt 0:00:20]} Bxb1 {[%emt 0:01:56]} 24. Rxb1 {[%emt 0:01:41]} Qf5 {[%emt 0:00:05]} 25. Rf1 {[%emt 0:00:08]} Qd3 {[%emt 0:00:32]} 26. Bg2 {[%emt 0:00:04]} Qxc4 {[%emt 0:00:06]} 27. Qxc6 {[%emt 0:00:21]} Qxa2 {[%emt 0:00:42]} 28. b5 {[%emt 0:00:51]} Bb6 {[%emt 0:00:16]} 29. h4 {[%emt 0:00:47]} h5 {[%emt 0:00:18]} 30. Kh2 {[%emt 0:00:19]} Rd2 {[%emt 0:00:49]} 31. Kh3 {[%emt 0:00:16]} Bd8 {[%emt 0:01:10]} 32. Qe8+ {[%emt 0:00:15]} Kg7 {[%emt 0:00:06]} 33. Qe5+ {[%emt 0:00:03]} Kh7 {[%emt 0:00:51]} 34. Qf4 {[%emt 0:00:07]} Kg8 {[%emt 0:00:18]} 35. Qe4 {[%emt 0:00:10]} Bc7 {[%emt 0:00:11]} 36. Qf3 {[%emt 0:00:01]} Qe6+ {[%emt 0:00:10]} 37. Kh2 {[%emt 0:00:01]} Re2 {[%emt 0:00:03]} 38. Kh1 {[%emt 0:00:09]} Re3 {[%emt 0:00:06]} 39. Qa8+ {[%emt 0:00:04]} Kg7 {[%emt 0:00:01]} 40. Qxa7 {[%emt 0:00:02]} Bxg3 {[%emt 0:00:07]} 41. Rxf7+ {[%emt 0:00:05]} Qxf7 {[%emt 0:00:10]} 1/2-1/2

[Event "European Online Club-ch-D 2021"]
[Site "Online"]
[Date "2021.03.27"]
[Round "6.16"]
[White "Samadov, Read"]
[Black "Guliyev, Namig"]
[Result "0-1"]
[ECO "C42"]
[WhiteElo "2332"]
[BlackElo "2538"]
[Annotator "ChessBase"]
[PlyCount "122"]
[EventDate "2021.03.27"]
[EventType "team-tourn"]
[EventCountry "NET"]
[SourceTitle "playchess.com"]
[Source "ChessBase"]
[SourceQuality "1"]
[TimeControl "900+5"]

1. d4 {[%emt 0:00:00]} d5 {[%emt 0:00:07]} 2. c4 {[%emt 0:00:03]} dxc4 {[%emt 0:00:01]} 3. e3 {[%emt 0:00:02]} e5 {[%emt 0:00:05]} 4. Bxc4 {[%emt 0:00:03]} exd4 {[%emt 0:00:01]} 5. exd4 {[%emt 0:00:02]} Nf6 {[%emt 0:00:02]} 6. Nf3 {[%emt 0:00:02]} Be7 {[%emt 0:00:02]} 7. O-O {[%emt 0:00:11]} O-O {[%emt 0:00:02]} 8. Nc3 {[%emt 0:00:05]} Nbd7 {[%emt 0:00:02]} 9. Re1 {[%emt 0:00:40]} Nb6 {[%emt 0:00:02]} 10. Bb3 {[%emt 0:00:03]} c6 {[%emt 0:00:11]} 11. Ne5 {[%emt 0:00:35]} Nbd5 {[%emt 0:00:23]} 12. Qf3 {[%emt 0:00:40]} Be6 {[%emt 0:00:03]} 13. Bg5 {[%emt 0:00:11]} Nc7 {[%emt 0:01:04]} 14. Bxe6 {[%emt 0:03:14]} Nxe6 {[%emt 0:00:03]} 15. Bxf6 {[%emt 0:01:03]} Bxf6 {[%emt 0:00:36]} 16. d5 {[%emt 0:00:33]} cxd5 {[%emt 0:00:42]} 17. Nxd5 {[%emt 0:00:07]} Bxe5 {[%emt 0:00:24]} 18. Rxe5 {[%emt 0:00:04]} Qd6 {[%emt 0:00:04]} 19. Rae1 {[%emt 0:00:40]} Rac8 {[%emt 0:00:40]} 20. Qg3 {[%emt 0:01:25]} Kh8 {[%emt 0:00:19]} 21. Nc3 {[%emt 0:00:30]} h6 {[%emt 0:00:22]} 22. Rd5 {[%emt 0:00:22]} Qxg3 {[%emt 0:00:12]} 23. hxg3 {[%emt 0:00:02]} Rfd8 {[%emt 0:00:04]} 24. Red1 {[%emt 0:00:06]} g5 {[%emt 0:00:21]} 25. Kf1 {[%emt 0:00:18]} Kg7 {[%emt 0:00:03]} 26. Ke2 {[%emt 0:00:13]} Rxd5 {[%emt 0:00:39]} 27. Rxd5 {[%emt 0:00:04]} a6 {[%emt 0:00:02]} 28. Kd2 {[%emt 0:00:23]} h5 {[%emt 0:00:11]} 29. a3 {[%emt 0:00:27]} Kg6 {[%emt 0:00:25]} 30. b4 {[%emt 0:00:14]} Rc6 {[%emt 0:00:35]} 31. Rd7 {[%emt 0:00:22]} b5 {[%emt 0:01:13]} 32. Ne4 {[%emt 0:00:51]} h4 {[%emt 0:00:14]} 33. Rd6 {[%emt 0:00:57]} Rxd6+ {[%emt 0:00:21]} 34. Nxd6 {[%emt 0:00:01]} f5 {[%emt 0:00:16]} 35. gxh4 {[%emt 0:00:36]} gxh4 {[%emt 0:00:04]} 36. Ke3 {[%emt 0:00:04]} Kg5 {[%emt 0:00:12]} 37. f3 {[%emt 0:00:40]} Nc7 {[%emt 0:00:49]} 38. Nb7 {[%emt 0:00:28]} Nd5+ {[%emt 0:00:11]} 39. Kf2 {[%emt 0:00:02]} Kf4 {[%emt 0:00:09]} 40. Nc5 {[%emt 0:00:06]} Nc7 {[%emt 0:00:01]} 41. Nd3+ {[%emt 0:00:06]} Kg5 {[%emt 0:00:03]} 42. g3 {[%emt 0:00:18]} hxg3+ {[%emt 0:00:22]} 43. Kxg3 {[%emt 0:00:02]} Ne6 {[%emt 0:00:18]} 44. f4+ {[%emt 0:00:19]} Kf6 {[%emt 0:00:03]} 45. Kf2 {[%emt 0:00:02]} Ke7 {[%emt 0:00:43]} 46. Ke3 {[%emt 0:00:34]} Kd6 {[%emt 0:00:01]} 47. Ne5 {[%emt 0:00:46]} Kd5 {[%emt 0:00:03]} 48. Nd7 {[%emt 0:00:06]} Kc4 {[%emt 0:00:08]} 49. Nb8 {[%emt 0:00:01]} Nc7 {[%emt 0:00:03]} 50. Nc6 {[%emt 0:00:14]} Nd5+ {[%emt 0:00:02]} 51. Kd2 {[%emt 0:00:08]} Kb3 {[%emt 0:00:37]} 52. Nb8 {[%emt 0:00:02]} Kxa3 {[%emt 0:00:19]} 53. Nxa6 {[%emt 0:00:03]} Nxf4 {[%emt 0:00:36]} 54. Ke3 {[%emt 0:00:02]} Nd5+ {[%emt 0:00:42]} 55. Kf3 {[%emt 0:00:08]} Kb3 {[%emt 0:00:07]} 56. Kg3 {[%emt 0:00:05]} Kc4 {[%emt 0:00:02]} 57. Kf3 {[%emt 0:00:03]} Kd4 {[%emt 0:00:02]} 58. Kf2 {[%emt 0:00:07]} Kc3 {[%emt 0:00:14]} 59. Kf3 {[%emt 0:00:03]} Kc4 {[%emt 0:00:01]} 60. Kg3 {[%emt 0:00:02]} Nxb4 {[%emt 0:00:04]} 61. Nc7 {[%emt 0:00:03]} Nd5 {[%emt 0:00:02]} 0-1

[Event "European Online Club-ch-D 2021"]
[Site "Online"]
[Date "2021.03.27"]
[Round "6.17"]
[White "Lupulescu, Constantin"]
[Black "Bauer, Christian"]
[Result "1/2-1/2"]
[ECO "B00"]
[WhiteElo "2656"]
[BlackElo "2639"]
[Annotator "ChessBase"]
[PlyCount "57"]
[EventDate "2021.03.27"]
[EventType "team-tourn"]
[EventCountry "NET"]
[SourceTitle "playchess.com"]
[Source "ChessBase"]
[SourceQuality "1"]
[TimeControl "900+5"]

1. Nf3 {[%emt 0:00:00]} b6 {[%emt 0:00:23]} 2. e4 {[%emt 0:00:47]} Bb7 {[%emt 0:00:02]} 3. Nc3 {[%emt 0:00:03]} Nf6 {[%emt 0:00:02]} 4. e5 {[%emt 0:00:12]} Nd5 {[%emt 0:00:03]} 5. Nxd5 {[%emt 0:00:54]} Bxd5 {[%emt 0:00:02]} 6. d4 {[%emt 0:00:00]} e6 {[%emt 0:00:02]} 7. Bd3 {[%emt 0:00:03]} c5 {[%emt 0:00:06]} 8. dxc5 {[%emt 0:00:53]} Nc6 {[%emt 0:00:35]} 9. Bf4 {[%emt 0:01:28]} bxc5 {[%emt 0:00:40]} 10. c4 {[%emt 0:00:51]} Bxf3 {[%emt 0:00:13]} 11. Qxf3 {[%emt 0:00:00]} g5 {[%emt 0:00:38]} 12. Bg3 {[%emt 0:00:12]} Qa5+ {[%emt 0:00:41]} 13. Kf1 {[%emt 0:00:18]} Rb8 {[%emt 0:00:50]} 14. Be4 {[%emt 0:03:01]} Nd4 {[%emt 0:00:59]} 15. Qc3 {[%emt 0:00:03]} Qb4 {[%emt 0:03:36]} 16. h4 {[%emt 0:01:34]} g4 {[%emt 0:00:20]} 17. h5 {[%emt 0:01:30]} h6 {[%emt 0:00:26]} 18. Qxb4 {[%emt 0:00:46]} Rxb4 {[%emt 0:00:03]} 19. b3 {[%emt 0:00:01]} Bg7 {[%emt 0:03:51]} 20. Rb1 {[%emt 0:01:26]} d6 {[%emt 0:00:45]} 21. exd6 {[%emt 0:00:08]} f5 {[%emt 0:00:02]} 22. Bd3 {[%emt 0:00:06]} Kd7 {[%emt 0:00:11]} 23. Ke1 {[%emt 0:01:16]} Bf6 {[%emt 0:01:26]} 24. Kd2 {[%emt 0:00:16]} a5 {[%emt 0:00:20]} 25. Rhf1 {[%emt 0:00:06]} Bg5+ {[%emt 0:00:09]} 26. Kc3 {[%emt 0:00:07]} Bf6 {[%emt 0:00:25]} 27. Kd2 {[%emt 0:00:01]} Bg5+ {[%emt 0:00:01]} 28. Kc3 {[%emt 0:00:02]} Bf6 {[%emt 0:00:08]} 29. Kd2 {[%emt 0:00:02]} 1/2-1/2